[Event "Tech Mahindra Global Chess League 2023"]
[Site "Chess.com"]
[Date "2023.06.25"]
[Round "5"]
[White "Sindarov, Javokhir"]
[Black "Praggnanandhaa, R."]
[Result "0-1"]
[WhiteElo "2596"]
[BlackElo "2587"]
[ECO "C50"]
[EventDate "2023.??.??"]
[Annotator "rafael"]
[PlyCount "82"]
[Beauty "7561310896137"]
[EventType "team-tourn"]
[TimeControl "900+10"]

1.e4 e5 2.Nf3 Nc6 3.Bc4 Bc5 4.Nc3 Nf6 5.d3 a6 6.Nd5 $5 {[%c_effect d5;square;d5;type;Interesting;persistent;true] The game quickly enters uncharted territory. There are only 40 games in my database with this move, which is quite a feat for move six in such a mainstream opening as the Italian.} 6...Nxd5 ( 6...h6 {was Anand's choice when facing this position.} 7.c3 d6 8.h3 Ba7 9.a4 Be6 10.a5 Bxd5 11.exd5 Ne7 12.d4 exd4 13.Nxd4 O-O {Black later won the battle of the legends. Kramnik x Anand, Wijk aan Zee 2019.} ) 7.Bxd5 {The best way to capture.} ( 7.exd5 Nd4 {leads to equality. Capturing the pawn on e5 is bad:} 8.Nxd4 ( 8.Nxe5 $6 {[%c_effect e5;square;e5;type;Inaccuracy;persistent;true]} 8...d6 ( 8...Qe7 $2 {[%c_effect e7;square;e7;type;Mistake;persistent;true] is not effective since White can simply castle.} 9.O-O ) 9.Nf3 Bg4 {with the initiative.} ) 8...Bxd4 ) 7...O-O 8.O-O ( 8.Bxc6 {Of course, the e5-pawn cannot be captured due to an old trick:} 8...dxc6 9.Nxe5 $4 {[%c_effect e5;square;e5;type;Blunder;persistent;true]} 9...Qd4 ) 8...d6 9.c3 Qf6 10.a4 ( 10.b4 {This is a natural alternative, trying to gain space on the queenside.} ) 10...a5 11.h3 h6 {It's usually good to reply to an h3-move with ...h6, making clear to your opponent that you're also patient. Slow maneuvers begin, and the evaluation (equality) doesn't change for a long time.} 12.Bb3 Ba7 13.Be3 Be6 14.Re1 Bxe3 15.Rxe3 Rad8 16.Bxe6 Qxe6 17.d4 {White finally takes some concrete action in the center. Now Black has a choice: whether to keep the central tension or play ...17...exd4.} 17...Ne7 ( 17...exd4 {is also playable. This capture is attractive when the white pawn is on a4, since the knight can use b4 as a strong point.} 18.cxd4 ( 18.Nxd4 {is also natural, but I don't think Black has much to fear after the exchange of knights.} 18...Nxd4 19.cxd4 ( 19.Qxd4 b6 ) 19...f5 {with an equal position.} ) 18...Nb4 {The knight is well placed here, and the position is more or less equal.} ( 18...d5 {is also possible:} 19.e5 f6 ) ) 18.Qe2 ( 18.d5 $6 {[%c_effect d5;square;d5;type;Inaccuracy;persistent;true] is premature. Black is ready to play ...f7-f5 after} 18...Qd7 ) ( 18.b4 {is an interesting way to create more action on the queenside.} ) 18...c6 {Black decides to avoid a queen invasion on b5.} 19.Qc2 ( 19.c4 {changes the pawn structure, but Black can play} 19...c5 $5 {[%c_effect c5;square;c5;type;Interesting;persistent;true]} 20.d5 Qd7 {Followed by the ...f7-f5 push.} ) ( 19.Rd1 {doesn't change the character of the game after} 19...Ng6 ) 19...Ng6 20.Rd1 Rfe8 21.Kh2 Nf4 22.Rd2 Qc8 23.Qb3 Qc7 24.g3 Ne6 {Both players showed considerable patience during the maneuvering phase, but now the fireworks are about to begin.} 25.h4 {It's not clear what this move achieves.} ( 25.Qd1 {Maybe this is more accurate.} ) 25...exd4 $1 {[%c_effect d4;square;d4;type;GreatFind;persistent;true] Praggnanandhaa changes the pawn structure at the right time.} 26.cxd4 ( 26.Nxd4 $2 {[%c_effect d4;square;d4;type;Mistake;persistent;true]} 26...Nc5 27.Qc2 d5 $1 {[%c_effect d5;square;d5;type;GreatFind;persistent;true]} ) 26...d5 $1 {[%c_effect d5;square;d5;type;GreatFind;persistent;true]} 27.e5 {The only move in order to avoid being left with an isolated pawn.} 27...c5 {White has many options, all of them leading to a more or less drawn position.} 28.Rc3 ( 28.dxc5 d4 {This looks very dangerous for White, but it's also balanced.} 29.Red3 {with equality.} ) ( 28.Qb5 cxd4 29.Nxd4 Nxd4 30.Rxd4 Rxe5 31.Rxe5 Qxe5 32.Rd2 {White regains the pawn with a likely draw.} ) 28...Qe7 ( 28...c4 {This advance tends to be positionally dangerous, and a human would be afraid of playing it. White can try to break the pawn chain with b2-b3, getting a better pawn structure. That being said, the computer shows the position is also equal, for instance:} 29.Qb5 Qc6 30.Qxc6 bxc6 31.b3 cxb3 32.Rxb3 Rb8 33.Rdb2 Rxb3 34.Rxb3 Rc8 {followed by ...c6-c5.} ) ( 28...Qc6 {is a good alternative.} ) 29.Qb6 ( 29.dxc5 $2 {[%c_effect c5;square;c5;type;Mistake;persistent;true]} 29...Nxc5 {followed by 30...Ne4, winning the exchange.} ) ( 29.Qb5 {leads to a draw after} 29...cxd4 30.Nxd4 Nxd4 31.Rxd4 Qxe5 32.Re3 ( 32.Rcd3 ) 32...Qxd4 33.Rxe8+ Rxe8 34.Qxe8+ Kh7 35.Qxf7 ) 29...Nxd4 30.Nxd4 cxd4 31.Rxd4 ( 31.Qxd4 Qxe5 {should end in a draw. I suspect Sindarov was still playing for the win and trying to avoid drawing variations.} ) 31...Qxe5 32.Rcd3 ( 32.Re3 {Again we have a draw:} 32...Qf6 ( 32...Qf5 33.Kg2 {is a bit dangerous for Black.} ) 33.Qxf6 gxf6 34.Rxe8+ Rxe8 35.Rxd5 Re2 36.Rb5 Rxf2+ 37.Kg1 ( 37.Kh3 {doesn't change the evaluation.} ) 37...Rc2 38.Rxb7 Kg7 ) 32...Rd6 33.Qxa5 $6 {[%c_effect a5;square;a5;type;Inaccuracy;persistent;true] This is the beginning of White's problems.} ( 33.Qxb7 Rf6 34.Rd2 Rxf2+ 35.Rxf2 Qxd4 36.Qxf7+ Kh7 {with a draw.} ) 33...Rf6 34.Rd2 $6 {[%c_effect d2;square;d2;type;Inaccuracy;persistent;true]} ( 34.Kg2 $2 {[%c_effect g2;square;g2;type;Mistake;persistent;true] loses to} 34...Qe2 {and the f2-pawn can't be defended.} ) ( 34.Qd2 Qe2 35.Rf4 Rxf4 36.Qxe2 ( 36.gxf4 $2 {[%c_effect f4;square;f4;type;Mistake;persistent;true]} 36...Qg4 ) 36...Rxe2 ( 36...Rxh4+ 37.gxh4 Rxe2 38.Kg3 Rxb2 39.Rxd5 {with a theoretical draw in the rook endgame.} ) 37.gxf4 Rxf2+ 38.Kg3 Rxb2 39.Rxd5 {with an easy draw, but I'd rather make a draw a pawn up than a pawn down.} ) 34...Qe1 $1 {[%c_effect e1;square;e1;type;GreatFind;persistent;true] Suddenly the position becomes very dangerous for White.} 35.Qxd5 ( 35.Kg2 $2 {[%c_effect g2;square;g2;type;Mistake;persistent;true] loses to} 35...Rxf2+ 36.Rxf2 Qxa5 ) 35...Rxf2+ 36.Rxf2 Qxf2+ 37.Kh3 Re3 38.Rg4 $2 {[%c_effect g4;square;g4;type;Mistake;persistent;true] The losing move.} ( 38.Qg2 {is necessary. The position is ugly, but there's no winning blow available for Black.} ) 38...Qf1+ {The simplest way to win.} 39.Qg2 Qf5 $1 {[%c_effect f5;square;f5;type;GreatFind;persistent;true]} 40.Qd2 ( 40.h5 {is the only way not to lose the rook, but the game will soon be over after} 40...Qxh5+ 41.Rh4 Qe5 ) 40...Re4 41.Qd1 h5 0-1

[Event "Tech Mahindra Global Chess League 2023"]
[Site "Chess.com"]
[Date "2023.06.28"]
[Round "7"]
[White "Anand, Viswanathan"]
[Black "Carlsen, Magnus"]
[Result "0-1"]
[WhiteElo "2731"]
[BlackElo "2829"]
[ECO "C18"]
[EventDate "2023.??.??"]
[Annotator "rafael"]
[PlyCount "140"]
[Beauty "5841981817387"]
[EventType "team-tourn"]
[TimeControl "900+10"]

1.e4 e6 2.d4 d5 3.Nc3 Bb4 4.e5 c5 5.a3 Bxc3+ 6.bxc3 Nc6 7.Qg4 g6 {Back in 2004, my friend GM Andrés Rodriguez visited my town and, during breaks of his main activity (playing the game \"Burnout\" on PlayStation 2), he analyzed this obscure sideline of the Winawer with the computer, trying to convince me of its correctness. Naturally my reaction was, as good friends always do, to try to dismiss the line as unplayable, at the same time nicknaming 7...g6 as the \"PlayStation Variation'. What I couldn't imagine is that my friend would be brave enough to start testing it, achieving excellent results and becoming its main specialist. Today, as I witnessed Carlsen playing it, I texted my friend to tell him that finally the PlayStation line gained the deserved spotlight and that he was almost 20 years ahead of his time.} 8.h4 {White has many attempts to refute Black's daring play. Anand goes to a very direct approach.} 8...h6 9.h5 g5 10.f4 Qa5 ( 10...f5 {is more popular and was played by Carlsen in 2022.} 11.Qg3 g4 12.dxc5 Qa5 {Giri-Carlsen, Wch Blitz Almaty 2022.} ) 11.Bd2 f5 12.Qg3 g4 {Black closes the the kingside and now creates the positional threat of closing the queenside as well with ...c5-c4. White must act.} 13.dxc5 {A natural move and the same idea that was tried in the Giri-Carlsen game, but here Anand had a tempting option.} ( 13.c4 $1 {[%c_effect c4;square;c4;type;GreatFind;persistent;true]} 13...Qa4 14.dxc5 Nge7 ( 14...dxc4 15.Ne2 $1 {[%c_effect e2;square;e2;type;GreatFind;persistent;true] is good for White.} ) 15.Qb3 $1 {[%c_effect b3;square;b3;type;GreatFind;persistent;true]} 15...Qxb3 16.cxb3 {with advantage in the the endgame.} ) 13...Nge7 14.Bd3 Qxc5 15.Ne2 Na5 ( 15...Bd7 {is less accurate:} 16.Be3 Qa5 17.O-O O-O 18.Rfb1 {with some pressure for White, although the game was soon agreed draw in Motylev-Kruppa, Predeal 2007.} ) 16.Qf2 Qxf2+ 17.Kxf2 {The endgame is more or less equal, but maybe it's easier for Black to play. He will be doing all the pressing from now on.} 17...Bd7 18.a4 Kf7 19.Rhb1 b6 20.Bc1 {A typical maneuver in the French. The bishop goes to the a3-f8 diagonal.} 20...Nec6 ( 20...Nc4 {is also possible, for instance:} 21.Nd4 Rhc8 22.Nb5 Bxb5 23.axb5 Rc7 24.Ra4 {with a slight advantage for White.} ) 21.Ba3 Nd8 {An interesting move to maneuver the knight that took me by surprise when I was following the game.} ( 21...Nc4 {is the move I expected.} 22.Bxc4 dxc4 {The game will probably end in a draw. Carlsen probably wanted to preserve more fighting chances.} ) 22.Bb4 Ndb7 23.Nd4 Rhb8 24.Nb3 ( 24.Bb5 {is a better attempt. Black must react with} 24...Be8 $1 {[%c_effect e8;square;e8;type;GreatFind;persistent;true]} ) 24...Nc4 ( 24...Nxb3 {is a good alternative:} 25.Rxb3 ( 25.cxb3 {it's tempting to rearrange the pawn structure, but Black is fine after} 25...a5 26.Ba3 Nc5 ) 25...a5 26.Ba3 Nc5 27.Bxc5 bxc5 28.Bb5 {with a likely draw.} ) 25.Bxc4 dxc4 26.Nd4 Rc8 27.a5 b5 28.Rd1 Be8 29.Ne2 a6 30.Rd4 Rd8 31.Rad1 Rxd4 32.Rxd4 {It looks like the game will soon end in a draw, but Carlsen has this extraordinary ability of turning drawish positions into full points.} 32...Bc6 33.Rd2 ( 33.Ng3 {is a prophylactic option in order to avoid Black's next move.} ) 33...g3+ $5 {[%c_effect g3;square;g3;type;Interesting;persistent;true] A very nice move, sacrificing a pawn to bring the rook to life on the g-file.} 34.Kg1 ( 34.Nxg3 Rg8 35.Rd4 Rg4 {White is in zugzwang. Any piece he moves loses material, but he is not worse.} 36.Ba3 Nxa5 37.Rd8 $1 {[%c_effect d8;square;d8;type;GreatFind;persistent;true]} 37...Rxf4+ 38.Ke3 Rg4 39.Ne2 {with sufficient counterplay. Of course, going for this position is a very difficult choice during the game.} ) 34...Rg8 35.Nd4 Rd8 $5 {[%c_effect d8;square;d8;type;Interesting;persistent;true]} 36.Bd6 $6 {[%c_effect d6;square;d6;type;Inaccuracy;persistent;true] This gives Black some chances.} ( 36.Re2 Be4 37.Re1 {it's difficult for Black to play for a win here.} ) 36...Be4 $1 {[%c_effect e4;square;e4;type;GreatFind;persistent;true]} 37.Bb4 Rd5 {Incredible precision. Carlsen wants to play Nd8-c6.} 38.Kf1 $1 {[%c_effect f1;square;f1;type;GreatFind;persistent;true]} ( 38.Re2 Nd8 39.Re3 $2 {[%c_effect e3;square;e3;type;Mistake;persistent;true] White is not in time to capture the pawn:} 39...Nc6 $1 {[%c_effect c6;square;c6;type;GreatFind;persistent;true] winning, since the knight cannot be captured.} ) 38...Nd8 39.Ke1 {Anand defends well. The king protects the rook and the d4-knight is not pinned anymore.} 39...Nc6 40.Ne2 ( 40.Nxc6 $2 {[%c_effect c6;square;c6;type;Mistake;persistent;true]} 40...Rxd2 41.Kxd2 Bxc6 {The g2-pawn falls.} ) 40...Rxd2 41.Kxd2 Bxg2 42.Nxg3 Bf3 43.Ke3 Bd1 44.Kd2 Bg4 45.Ke3 Ke8 $1 {[%c_effect e8;square;e8;type;GreatFind;persistent;true] It turns out the draw is not so easy.} 46.Kd2 Ne7 47.Bxe7 $1 {[%c_effect e7;square;e7;type;GreatFind;persistent;true] The only way, otherwise the knight lands on d5.} 47...Kxe7 {This is a critical position of the game. The computer indicates a draw, but it took me a long time to understand it without turning the engine on. My conclusion is that a human can easily evaluate the position as losing for White, since the path to safety is very narrow.} 48.Kc1 $2 {[%c_effect c1;square;c1;type;Mistake;persistent;true] A losing move.} ( 48.Ne2 {It's necessary to go for a pawn endgame that looks losing to humans, but it's a draw for machines.} 48...Bxe2 ( 48...Bxh5 49.Nd4 Be8 50.Ke2 {White creates a fortress. Black's king cannot reach the queenside and the king will protect everything on g3.} ) 49.Kxe2 Kd7 50.Ke3 Kc7 $1 {[%c_effect c7;square;c7;type;GreatFind;persistent;true]} ( 50...Kc6 51.Kd4 ) 51.Kf3 Kc6 52.Ke2 $1 {[%c_effect e2;square;e2;type;GreatFind;persistent;true]} ( 52.Ke3 $2 {[%c_effect e3;square;e3;type;Mistake;persistent;true]} 52...Kc5 ) 52...Kc5 53.Ke3 b4 {I'd probably resign here as White, but the position is drawn.} 54.cxb4+ Kxb4 55.Kd4 c3 ( 55...Kxa5 $4 {[%c_effect a5;square;a5;type;Blunder;persistent;true] even loses:} 56.Kc5 Ka4 57.Kd6 ) 56.Kd3 Kxa5 57.Kxc3 Kb5 58.Kb3 Kc5 ( 58...a5 59.c4+ Kc5 60.Ka4 Kxc4 61.Kxa5 Kd5 62.Kb6 {transposes to the main line.} ) 59.Ka4 Kd4 60.Ka5 Ke4 61.c4 ( 61.Kxa6 $2 {[%c_effect a6;square;a6;type;Mistake;persistent;true]} 61...Kxf4 ) 61...Kd4 62.Kxa6 Kxc4 63.Kb6 Kd5 64.Kc7 Ke4 65.Kd6 Kxf4 66.Kxe6 Kg5 67.Kd5 f4 68.e6 f3 69.e7 f2 70.e8=Q f1=Q {with a draw.} ) 48...Kd7 {Now the king joins the party.} 49.Kb2 Kc6 50.Ka2 Kd5 51.Ka3 Kc5 52.Kb2 Bd1 53.Kc1 Bf3 54.Kb2 b4 $2 {[%c_effect b4;square;b4;type;Mistake;persistent;true] The most natural move in the world, but not the best. This allows White to escape.} ( 54...Bc6 $1 {[%c_effect c6;square;c6;type;GreatFind;persistent;true] It's necessary to transfer the bishop first. The winning idea is:} 55.Ne2 Be8 56.Ng3 b4 $1 {[%c_effect b4;square;b4;type;GreatFind;persistent;true]} 57.cxb4+ Kd4 $1 {[%c_effect d4;square;d4;type;GreatFind;persistent;true] The bishop controls the break b4-b5 and the king can safely march to the kingside.} ) 55.cxb4+ Kd4 ( 55...Kxb4 56.c3+ Kxa5 57.Ka2 {White has a fortress: he can keep waiting with Ka2-b2.} ) 56.c3+ Kd3 ( 56...Ke3 {This leads to study-like draw.} 57.Nxf5+ $1 {[%c_effect f5;square;f5;type;GreatFind;persistent;true] The only move $1} 57...exf5 58.b5 $1 {[%c_effect b5;square;b5;type;GreatFind;persistent;true]} 58...axb5 59.e6 Kd2 60.e7 Bc6 61.a6 b4 62.a7 bxc3+ 63.Ka2 c2 64.e8=Q {with a miracle escape for White.} 64...Bxe8 ( 64...c1=Q 65.Qxc6 ) 65.a8=Q c1=Q {White's king is in a stalemate position. White \"only\" needs to give the queen away.} 66.Qg2+ Ke3 ( 66...Kc3 67.Qg7+ $1 {[%c_effect g7;square;g7;type;GreatFind;persistent;true]} ) 67.Qf3+ Kd4 68.Qd5+ {with a draw.} ) 57.b5 axb5 58.a6 Kd2 59.a7 Bd5 ( 59...b4 60.Nf1+ Ke2 61.Ng3+ Kd2 62.Nf1+ {with perpetual check.} ) 60.Nxf5 $2 {[%c_effect f5;square;f5;type;Mistake;persistent;true] Unfortunately for Anand, the sacrifice doesn't work this time. To be fair, the complications are impossible to calculate.} ( 60.Nf1+ $1 {[%c_effect f1;square;f1;type;GreatFind;persistent;true] leads to a draw:} 60...Ke2 ( 60...Kd3 61.Ng3 ) 61.Ng3+ Kd2 62.Nf1+ ) 60...exf5 61.e6 b4 62.e7 bxc3+ 63.Ka2 c2 64.a8=Q Bxa8 65.e8=Q {There's only one winning move for Black in this position. What a game $1} 65...Be4 $2 {[%c_effect e4;square;e4;type;Mistake;persistent;true]} ( 65...c1=Q $2 {[%c_effect c1;square;c1;type;Mistake;persistent;true]} 66.Qe3+ {leads to stalemate.} ) ( 65...c1=N+ {is not convincing:} 66.Ka3 ) ( 65...c3 $3 {[%c_effect c3;square;c3;type;Brilliant;persistent;true] The right way $1 Black releases the b3-square so the king is not stalemated anymore. The checks soon will be over.} 66.Qd7+ ( 66.Qxa8 c1=Q {with a winning queen and pawn endgame.} ) ( 66.Qd8+ Ke1 67.Qh4+ Kd1 ) 66...Ke1 $1 {[%c_effect e1;square;e1;type;GreatFind;persistent;true]} 67.Qe7+ Be4 $1 {[%c_effect e4;square;e4;type;GreatFind;persistent;true]} 68.Qh4+ Kd1 $1 {[%c_effect d1;square;d1;type;GreatFind;persistent;true] The checks are over. Fantastic.} ) 66.Qd8+ Bd3 {White has only one drawing move now. I'm speechless.} 67.Qd4 $2 {[%c_effect d4;square;d4;type;Mistake;persistent;true]} ( 67.Qb6 $3 {[%c_effect b6;square;b6;type;Brilliant;persistent;true]} 67...c1=Q ( 67...c1=N+ 68.Ka3 c3 {Compared to the game, White is in time to capture the h6-pawn..} 69.Qxh6 $1 {[%c_effect h6;square;h6;type;GreatFind;persistent;true]} 69...c2 70.Qc6 Ne2 71.h6 c1=Q+ 72.Qxc1+ Kxc1 73.h7 Nxf4 74.h8=Q Ne2 {According to tablebase, this is a draw.} ) 68.Qf2+ Kc3 69.Qd4+ {with stalemate.} ) 67...c1=N+ $3 {[%c_effect c1;square;c1;type;Brilliant;persistent;true]} 68.Ka3 c3 {The queen is unable to stop the c-pawn.} 69.Qb6 Ne2 70.Qxh6 c2 ( 70...c2 71.Qc6 c1=Q+ 72.Qxc1+ Kxc1 73.h6 {Now the knight is in time:} 73...Nxf4 74.h7 Ng6 ) 0-1